[Event "5e festival international d'échecs d'A"]
[Site "Allauch, France"]
[Date "2023.08.28"]
[Round "1.2"]
[White "Moncamp, Gilles"]
[Black "Tramarin, Matteo"]
[Result "1-0"]
[WhiteElo "2103"]
[BlackElo "1638"]
[PlyCount "79"]
[EventDate "2023.??.??"]
[TimeControl "1"]

1. e4 {[%emt 0:00:00]} c5 {[%emt 0:00:00]} 2. Nf3 {[%emt 0:00:00]} Nc6 {
[%emt 0:00:00]} 3. Nc3 {[%emt 0:00:00]} g6 {[%emt 0:00:00]} 4. h4 {[%emt 0:00:
00]} h5 {[%emt 0:00:00]} 5. Bc4 {[%emt 0:00:00]} Bg7 {[%emt 0:00:00]} 6. d3 {
[%emt 0:00:00]} e6 {[%emt 0:00:00]} 7. Bf4 {[%emt 0:00:00]} a6 {[%emt 0:00:00]}
8. Qe2 {[%emt 0:00:00]} Nge7 {[%emt 0:00:00]} 9. Qe3 {[%emt 0:00:00]} Nd4 {
[%emt 0:00:00]} 10. Bb3 {[%emt 0:00:00]} b6 {[%emt 0:00:00]} 11. Bd6 {[%emt 0:
00:00]} Bb7 {[%emt 0:00:00]} 12. Qf4 {[%emt 0:00:00]} Nc8 {[%emt 0:00:00]} 13.
Be5 {[%emt 0:00:00]} Nxf3+ {[%emt 0:00:00]} 14. gxf3 {[%emt 0:00:00]} Bh6 {
[%emt 0:00:00]} 15. Qg3 {[%emt 0:00:00]} Rg8 {[%emt 0:00:00]} 16. Ne2 {[%emt 0:
00:00]} d6 {[%emt 0:00:00]} 17. Bf4 {[%emt 0:00:00]} Bxf4 {[%emt 0:00:00]} 18.
Nxf4 {[%emt 0:00:00]} Qf6 {[%emt 0:00:00]} 19. O-O-O {[%emt 0:00:00]} Ne7 {
[%emt 0:00:00]} 20. Nh3 {[%emt 0:00:00]} O-O-O {[%emt 0:00:00]} 21. Ng5 {
[%emt 0:00:00]} Nc6 {[%emt 0:00:00]} 22. c3 {[%emt 0:00:00]} b5 {[%emt 0:00:00]
} 23. Rhe1 {[%emt 0:00:00]} Rd7 {[%emt 0:00:00]} 24. f4 {[%emt 0:00:00]} d5 {
[%emt 0:00:00]} 25. Kb1 {[%emt 0:00:00]} a5 {[%emt 0:00:00]} 26. exd5 {[%emt 0:
00:00]} exd5 {[%emt 0:00:00]} 27. Qh3 {[%emt 0:00:00]} Ne7 {[%emt 0:00:00]} 28.
Re5 {[%emt 0:00:00]} Nf5 {[%emt 0:00:00]} 29. Rde1 {[%emt 0:00:00]} Kd8 {
[%emt 0:00:00]} 30. Bc2 {[%emt 0:00:00]} Nd6 {[%emt 0:00:00]} 31. Qe3 {[%emt 0:
00:00]} Rc7 {[%emt 0:00:00]} 32. d4 {[%emt 0:00:00]} c4 {[%emt 0:00:00]} 33.
Bd1 {[%emt 0:00:00]} Bc6 {[%emt 0:00:00]} 34. Bf3 {[%emt 0:00:00]} Nf5 {
[%emt 0:00:00]} 35. Qe2 {[%emt 0:00:00]} Qd6 {[%emt 0:00:00]} 36. Bxd5 {
[%emt 0:00:00]} Bxd5 {[%emt 0:00:00]} 37. Re8+ {[%emt 0:00:00]} Kd7 {[%emt 0:
00:00]} 38. Rxg8 {[%emt 0:00:00]} Qxf4 {[%emt 0:00:00]} 39. Qe8+ {[%emt 0:00:
00]} Kd6 {[%emt 0:00:00]} 40. Qxb5 {[%emt 0:00:00]} 1-0

[Event "5e festival international d'échecs d'A"]
[Site "Allauch, France"]
[Date "2023.08.28"]
[Round "1.4"]
[White "Etienne, Benjamin"]
[Black "Derige Kane, Yan"]
[Result "0-1"]
[WhiteElo "1638"]
[BlackElo "2162"]
[PlyCount "72"]
[EventDate "2023.??.??"]
[TimeControl "1"]

1. e4 {[%emt 0:00:00]} c5 {[%emt 0:00:00]} 2. Nf3 {[%emt 0:00:00]} Nc6 {
[%emt 0:00:00]} 3. Bb5 {[%emt 0:00:00]} e6 {[%emt 0:00:00]} 4. O-O {[%emt 0:00:
00]} Nge7 {[%emt 0:00:00]} 5. c3 {[%emt 0:00:00]} a6 {[%emt 0:00:00]} 6. Ba4 {
[%emt 0:00:00]} b5 {[%emt 0:00:00]} 7. Bc2 {[%emt 0:00:00]} Ng6 {[%emt 0:00:00]
} 8. d4 {[%emt 0:00:00]} cxd4 {[%emt 0:00:00]} 9. cxd4 {[%emt 0:00:21]} d5 {
[%emt 0:00:00]} 10. exd5 {[%emt 0:00:00]} exd5 {[%emt 0:00:00]} 11. Re1+ {
[%emt 0:00:00]} Be7 {[%emt 0:00:00]} 12. Bg5 {[%emt 0:00:00]} O-O {[%emt 0:00:
00]} 13. Bxe7 {[%emt 0:00:00]} Ncxe7 {[%emt 0:00:00]} 14. h3 {[%emt 0:00:00]}
Nf5 {[%emt 0:00:00]} 15. a4 {[%emt 0:00:00]} b4 {[%emt 0:00:00]} 16. a5 {
[%emt 0:00:00]} Qf6 {[%emt 0:00:00]} 17. Qd2 {[%emt 0:00:00]} Nfh4 {[%emt 0:00:
00]} 18. Nxh4 {[%emt 0:00:00]} Nxh4 {[%emt 0:00:00]} 19. Re3 {[%emt 0:00:00]}
Bd7 {[%emt 0:00:00]} 20. Rg3 {[%emt 0:00:00]} Rac8 {[%emt 0:00:00]} 21. Bd3 {
[%emt 0:00:00]} g6 {[%emt 0:00:00]} 22. Bf1 {[%emt 0:00:00]} Rfe8 {[%emt 0:00:
00]} 23. Re3 {[%emt 0:00:00]} Re7 24. Re6 Rxe6 25. Qe3 {[%emt 0:00:00]} Ree8 {
[%emt 0:01:31]} 26. Qd2 Re3 {[%emt 0:00:00]} 27. Qxe3 {[%emt 0:00:00]} Nf5 {
[%emt 0:00:00]} 28. Qf4 {[%emt 0:00:00]} Qxd4 {[%emt 0:00:00]} 29. Qxd4 {
[%emt 0:00:00]} Nxd4 {[%emt 0:00:00]} 30. Nd2 {[%emt 0:00:00]} Bb5 {[%emt 0:00:
00]} 31. Bxb5 {[%emt 0:00:00]} Nxb5 {[%emt 0:00:00]} 32. Rd1 {[%emt 0:00:00]}
Rc2 {[%emt 0:00:00]} 33. Nf3 {[%emt 0:00:00]} Rxb2 {[%emt 0:00:00]} 34. Rxd5 {
[%emt 0:00:00]} Ra2 {[%emt 0:00:00]} 35. Rd1 {[%emt 0:00:00]} b3 {[%emt 0:00:
00]} 36. Rb1 {[%emt 0:00:00]} b2 {[%emt 0:00:00]} 0-1

[Event "5e festival international d'échecs d'A"]
[Site "Allauch, France"]
[Date "2023.08.28"]
[Round "1.5"]
[White "Toth, Kincso"]
[Black "Petrosyan, Armen"]
[Result "0-1"]
[WhiteElo "1709"]
[BlackElo "2360"]
[PlyCount "98"]
[EventDate "2023.??.??"]
[TimeControl "1"]

1. e4 {[%emt 0:00:00]} c6 {[%emt 0:00:00]} 2. Nf3 {[%emt 0:00:00]} d5 {[%emt 0:
00:00]} 3. d3 {[%emt 0:00:00]} dxe4 {[%emt 0:00:00]} 4. dxe4 {[%emt 0:00:00]}
Qxd1+ {[%emt 0:00:00]} 5. Kxd1 {[%emt 0:00:00]} Nd7 {[%emt 0:00:00]} 6. Nfd2 {
[%emt 0:00:00]} Ngf6 {[%emt 0:00:00]} 7. f3 {[%emt 0:00:00]} g5 {[%emt 0:00:00]
} 8. a4 {[%emt 0:00:00]} h5 {[%emt 0:00:00]} 9. Nc4 {[%emt 0:00:00]} Bh6 {
[%emt 0:00:00]} 10. Nc3 {[%emt 0:00:00]} Nc5 {[%emt 0:00:00]} 11. Be3 {[%emt 0:
00:00]} Ne6 {[%emt 0:00:00]} 12. Ke1 {[%emt 0:00:00]} g4 {[%emt 0:00:00]} 13.
Rd1 {[%emt 0:00:00]} h4 {[%emt 0:00:00]} 14. Bxh6 {[%emt 0:00:00]} Rxh6 {
[%emt 0:00:00]} 15. Ne3 {[%emt 0:00:00]} gxf3 {[%emt 0:00:00]} 16. gxf3 {
[%emt 0:00:00]} Nf4 {[%emt 0:00:00]} 17. Rg1 {[%emt 0:00:00]} Rg6 {[%emt 0:00:
00]} 18. Rxg6 {[%emt 0:00:00]} fxg6 {[%emt 0:00:00]} 19. Bc4 {[%emt 0:00:00]}
Be6 {[%emt 0:00:00]} 20. Bxe6 {[%emt 0:00:00]} Nxe6 {[%emt 0:00:00]} 21. Nc4 {
[%emt 0:00:00]} Rd8 {[%emt 0:00:00]} 22. Rxd8+ {[%emt 0:00:00]} Kxd8 {[%emt 0:
00:00]} 23. Ne5 {[%emt 0:00:00]} g5 {[%emt 0:00:00]} 24. Kd2 {[%emt 0:00:00]}
Kc7 {[%emt 0:00:00]} 25. b3 {[%emt 0:00:00]} Kd6 {[%emt 0:00:00]} 26. Nc4+ {
[%emt 0:00:00]} Kc5 {[%emt 0:00:00]} 27. Ne5 {[%emt 0:00:00]} b5 {[%emt 0:00:
00]} 28. axb5 {[%emt 0:00:00]} cxb5 {[%emt 0:00:00]} 29. Ne2 {[%emt 0:00:00]}
a5 {[%emt 0:00:00]} 30. Nd3+ {[%emt 0:00:00]} Kb6 {[%emt 0:00:00]} 31. Ne5 {
[%emt 0:00:00]} Kc5 {[%emt 0:00:00]} 32. Nd3+ {[%emt 0:00:00]} Kc6 {[%emt 0:00:
00]} 33. Ne5+ {[%emt 0:00:00]} Kd6 {[%emt 0:00:00]} 34. Nf7+ {[%emt 0:00:00]}
Kc7 {[%emt 0:00:00]} 35. Ne5 {[%emt 0:00:00]} Nd7 {[%emt 0:00:00]} 36. Nd3 {
[%emt 0:00:00]} Nec5 {[%emt 0:00:00]} 37. Nc3 {[%emt 0:00:00]} Nxd3 {[%emt 0:
00:00]} 38. Nd5+ {[%emt 0:00:00]} Kd6 {[%emt 0:00:00]} 39. Kxd3 {[%emt 0:00:00]
} e6 {[%emt 0:00:00]} 40. Nc3 {[%emt 0:00:00]} Kc5 {[%emt 0:00:00]} 41. Ne2 {
[%emt 0:00:00]} Ne5+ {[%emt 0:00:00]} 42. Ke3 {[%emt 0:00:00]} a4 {[%emt 0:00:
00]} 43. bxa4 {[%emt 0:00:00]} bxa4 {[%emt 0:00:00]} 44. Nc3 {[%emt 0:00:00]}
a3 {[%emt 0:00:00]} 45. Na2 {[%emt 0:00:00]} Nc6 {[%emt 0:00:00]} 46. c3 {
[%emt 0:00:00]} Kc4 {[%emt 0:00:00]} 47. Kd2 {[%emt 0:00:00]} Ne5 {[%emt 0:00:
00]} 48. Ke3 {[%emt 0:00:00]} Kb3 {[%emt 0:00:00]} 49. Nc1+ {[%emt 0:00:00]}
Kb2 {[%emt 0:00:00]} 0-1

[Event "5e festival international d'échecs d'A"]
[Site "Allauch, France"]
[Date "2023.08.28"]
[Round "1.6"]
[White "Feugier, Bruno"]
[Black "Personne, Solene"]
[Result "0-1"]
[WhiteElo "1175"]
[BlackElo "1542"]
[PlyCount "82"]
[EventDate "2023.??.??"]
[TimeControl "1"]

1. d4 {[%emt 0:00:00]} Nf6 {[%emt 0:00:00]} 2. Bg5 {[%emt 0:00:00]} Ne4 {
[%emt 0:00:00]} 3. Bh4 {[%emt 0:00:00]} d5 {[%emt 0:00:00]} 4. f3 {[%emt 0:00:
00]} Nf6 {[%emt 0:00:00]} 5. e3 {[%emt 0:00:00]} e6 {[%emt 0:00:00]} 6. Bd3 {
[%emt 0:00:00]} c5 {[%emt 0:00:00]} 7. c3 {[%emt 0:00:00]} Nc6 {[%emt 0:00:00]}
8. Ne2 {[%emt 0:00:00]} Bd6 {[%emt 0:00:00]} 9. Nd2 {[%emt 0:00:00]} e5 {
[%emt 0:00:00]} 10. dxc5 {[%emt 0:00:00]} Bxc5 {[%emt 0:00:00]} 11. Bf2 {
[%emt 0:00:00]} O-O {[%emt 0:00:00]} 12. b4 {[%emt 0:00:00]} Bb6 {[%emt 0:00:
00]} 13. b5 {[%emt 0:00:00]} Ne7 {[%emt 0:00:00]} 14. g4 {[%emt 0:00:00]} e4 {
[%emt 0:00:00]} 15. Bc2 {[%emt 0:00:00]} exf3 {[%emt 0:00:00]} 16. Nd4 {
[%emt 0:00:00]} Bxg4 {[%emt 0:00:00]} 17. h3 {[%emt 0:00:00]} Bh5 {[%emt 0:00:
00]} 18. Rg1 {[%emt 0:00:00]} Qc8 {[%emt 0:00:00]} 19. Rh1 {[%emt 0:00:00]}
Qxc3 {[%emt 0:00:00]} 20. Rc1 {[%emt 0:00:00]} Qb4 {[%emt 0:00:00]} 21. Rb1 {
[%emt 0:00:00]} Qd6 {[%emt 0:00:00]} 22. Bf5 {[%emt 0:00:00]} Qe5 {[%emt 0:00:
00]} 23. N2xf3 {[%emt 0:00:00]} Bxf3 {[%emt 0:00:00]} 24. Nxf3 {[%emt 0:00:00]}
Qxf5 {[%emt 0:00:00]} 25. Rb4 {[%emt 0:00:00]} Ba5 {[%emt 0:00:00]} 26. a3 {
[%emt 0:00:00]} Bxb4+ {[%emt 0:00:00]} 27. axb4 {[%emt 0:00:00]} Ne4 {[%emt 0:
00:00]} 28. Bh4 {[%emt 0:00:00]} Ng6 {[%emt 0:00:00]} 29. Rf1 {[%emt 0:00:00]}
Nxh4 {[%emt 0:00:00]} 30. Nxh4 {[%emt 0:00:00]} Qxh3 {[%emt 0:00:00]} 31. Nf5 {
[%emt 0:00:00]} Ng3 {[%emt 0:00:00]} 32. Rf3 {[%emt 0:00:00]} Qh1+ {[%emt 0:00:
00]} 33. Kd2 {[%emt 0:00:00]} Ne4+ {[%emt 0:00:00]} 34. Kc1 {[%emt 0:00:00]}
Rac8+ {[%emt 0:00:00]} 35. Kb2 {[%emt 0:00:00]} Qg2+ {[%emt 0:00:00]} 36. Ka1 {
[%emt 0:00:00]} Nc3 {[%emt 0:00:00]} 37. Ne7+ {[%emt 0:00:00]} Kh8 {[%emt 0:00:
00]} 38. Qb3 {[%emt 0:00:00]} Qh1+ {[%emt 0:00:00]} 39. Kb2 {[%emt 0:00:00]}
Qb1+ {[%emt 0:00:00]} 40. Ka3 {[%emt 0:00:00]} Qa1+ {[%emt 0:00:00]} 41. Qa2 {
[%emt 0:00:00]} Qxa2# {[%emt 0:00:00]} 0-1

[Event "5e festival international d'échecs d'A"]
[Site "Allauch, France"]
[Date "2023.08.28"]
[Round "1.7"]
[White "Anton, Christophe"]
[Black "Leonti, Denis"]
[Result "1/2-1/2"]
[WhiteElo "1455"]
[BlackElo "1158"]
[PlyCount "117"]
[EventDate "2023.??.??"]
[TimeControl "1"]

1. e4 {[%emt 0:07:19]} e6 {[%emt 0:00:10]} 2. d4 {[%emt 0:00:07]} d5 {[%emt 0:
00:07]} 3. exd5 {[%emt 0:00:04]} exd5 {[%emt 0:00:09]} 4. Nf3 {[%emt 0:00:11]}
Bf5 {[%emt 0:00:31]} 5. Bd3 {[%emt 0:00:25]} Bxd3 {[%emt 0:01:02]} 6. Qxd3 {
[%emt 0:00:13]} Nf6 {[%emt 0:01:09]} 7. O-O {[%emt 0:00:28]} Be7 {[%emt 0:00:
37]} 8. Qb5+ {[%emt 0:03:26]} c6 {[%emt 0:01:32]} 9. Qxb7 {[%emt 0:00:31]} Nbd7
{[%emt 0:01:00]} 10. Qxc6 {[%emt 0:03:19]} Rc8 {[%emt 0:01:15]} 11. Qa4 {
[%emt 0:00:48]} O-O {[%emt 0:00:55]} 12. Bg5 {[%emt 0:02:11]} Nb6 {[%emt 0:02:
13]} 13. Qb3 {[%emt 0:12:26]} Nc4 {[%emt 0:02:25]} 14. Ne5 {[%emt 0:07:35]} Rb8
{[%emt 0:07:12]} 15. Qg3 {[%emt 0:16:31]} Ne4 {[%emt 0:04:04]} 16. Bxe7 {
[%emt 0:00:15]} Nxg3 {[%emt 0:00:22]} 17. Bxd8 {[%emt 0:00:09]} Nxf1 {[%emt 0:
00:00]} 18. Nxc4 {[%emt 0:00:00]} dxc4 {[%emt 0:00:00]} 19. Ba5 {[%emt 0:00:00]
} Nxh2 {[%emt 0:00:00]} 20. Kxh2 {[%emt 0:00:00]} Rxb2 {[%emt 0:00:00]} 21. Na3
{[%emt 0:00:00]} Rc8 {[%emt 0:00:00]} 22. Bc3 {[%emt 0:00:00]} Rb6 {[%emt 0:00:
00]} 23. Rb1 {[%emt 0:00:00]} Rxb1 {[%emt 0:00:00]} 24. Nxb1 {[%emt 0:00:00]}
f6 {[%emt 0:00:00]} 25. Nd2 {[%emt 0:00:00]} Kf7 {[%emt 0:00:00]} 26. f4 {
[%emt 0:00:00]} Ke6 {[%emt 0:03:58]} 27. g4 {[%emt 0:00:00]} Kd5 {[%emt 0:01:
26]} 28. Kg3 {[%emt 0:00:00]} Re8 {[%emt 0:00:00]} 29. Kf3 {[%emt 0:00:00]} Re1
{[%emt 0:00:00]} 30. Nxc4 {[%emt 0:00:00]} Rf1+ {[%emt 0:00:00]} 31. Ke2 {
[%emt 0:00:00]} Rxf4 {[%emt 0:00:00]} 32. Ne3+ {[%emt 0:00:00]} Kc6 {[%emt 0:
00:00]} 33. Bb2 {[%emt 0:00:00]} Kd7 {[%emt 0:00:00]} 34. c4 {[%emt 0:00:00]}
g6 {[%emt 0:00:00]} 35. d5 {[%emt 0:00:00]} h5 {[%emt 0:00:00]} 36. gxh5 {
[%emt 0:00:00]} gxh5 {[%emt 0:00:00]} 37. c5 {[%emt 0:00:00]} h4 {[%emt 0:00:
00]} 38. Nf1 {[%emt 0:00:00]} h3 {[%emt 0:00:00]} 39. Bc1 {[%emt 0:00:00]} Rf5
{[%emt 0:00:00]} 40. c6+ {[%emt 0:00:00]} Kd6 {[%emt 0:00:00]} 41. Ne3 {
[%emt 0:00:00]} Rh5 {[%emt 0:00:00]} 42. Ng4 {[%emt 0:00:00]} Rxd5 {[%emt 0:00:
00]} 43. Nxf6 {[%emt 0:00:00]} Kxc6 {[%emt 0:00:00]} 44. Ng4 {[%emt 0:00:00]}
Rh5 {[%emt 0:00:00]} 45. Nh2 {[%emt 0:00:00]} Rg5 {[%emt 0:00:00]} 46. Kf1 {
[%emt 0:00:00]} Rg2 {[%emt 0:00:00]} 47. Nf3 {[%emt 0:00:00]} Rxa2 {[%emt 0:00:
00]} 48. Bf4 {[%emt 0:00:00]} a5 {[%emt 0:00:00]} 49. Kg1 {[%emt 0:00:00]} Rg2+
{[%emt 0:00:00]} 50. Kh1 {[%emt 0:00:00]} a4 {[%emt 0:00:00]} 51. Ng5 {[%emt 0:
00:00]} a3 {[%emt 0:00:00]} 52. Nxh3 {[%emt 0:00:00]} Rg8 {[%emt 0:00:00]} 53.
Bc1 {[%emt 0:00:00]} a2 {[%emt 0:00:00]} 54. Bb2 {[%emt 0:00:00]} Rd8 {[%emt 0:
00:00]} 55. Bf6 {[%emt 0:00:00]} Rd1+ {[%emt 0:00:00]} 56. Kg2 {[%emt 0:00:00]}
a1=Q {[%emt 0:00:00]} 57. Bxa1 {[%emt 0:00:00]} Rxa1 {[%emt 0:00:00]} 58. Kf2 {
[%emt 0:00:00]} Ra2+ {[%emt 0:00:13]} 59. Kg1 {[%emt 0:00:43]} 1/2-1/2

[Event "5e festival international d'échecs d'A"]
[Site "Allauch, France"]
[Date "2023.08.28"]
[Round "1.8"]
[White "Takada, Soshiro"]
[Black "Barthel, Malo"]
[Result "1-0"]
[WhiteElo "1146"]
[BlackElo "1449"]
[PlyCount "41"]
[EventDate "2023.??.??"]
[TimeControl "1"]

1. e4 {[%emt 0:00:00]} e5 {[%emt 0:00:00]} 2. Nf3 {[%emt 0:00:00]} Nc6 {
[%emt 0:00:00]} 3. Bb5 {[%emt 0:00:00]} a6 {[%emt 0:00:00]} 4. Ba4 {[%emt 0:00:
00]} Nge7 {[%emt 0:00:00]} 5. O-O {[%emt 0:00:00]} g6 {[%emt 0:00:00]} 6. d3 {
[%emt 0:00:00]} Bg7 {[%emt 0:00:00]} 7. Be3 {[%emt 0:00:00]} O-O {[%emt 0:00:
00]} 8. c3 {[%emt 0:00:00]} b5 {[%emt 0:00:00]} 9. Bb3 {[%emt 0:00:00]} d5 {
[%emt 0:00:00]} 10. exd5 {[%emt 0:00:00]} Nxd5 {[%emt 0:00:00]} 11. d4 {
[%emt 0:00:00]} e4 {[%emt 0:00:00]} 12. Nfd2 {[%emt 0:00:00]} Nxe3 {[%emt 0:00:
00]} 13. fxe3 {[%emt 0:00:00]} Qg5 {[%emt 0:00:00]} 14. Nxe4 {[%emt 0:00:00]}
Qxe3+ {[%emt 0:00:00]} 15. Nf2 {[%emt 0:00:00]} Na5 {[%emt 0:00:00]} 16. Bd5 {
[%emt 0:00:00]} Bb7 {[%emt 0:00:00]} 17. Bxb7 {[%emt 0:00:00]} Nxb7 {[%emt 0:
00:00]} 18. Nd2 {[%emt 0:00:00]} Bh6 {[%emt 0:00:00]} 19. Nde4 {[%emt 0:00:00]}
Qf4 {[%emt 0:00:00]} 20. Ng4 {[%emt 0:00:00]} Qxe4 {[%emt 0:00:00]} 21. Nf6+ {
[%emt 0:00:00]} 1-0

[Event "5e festival international d'échecs d'A"]
[Site "Allauch, France"]
[Date "2023.08.29"]
[Round "2.4"]
[White "Derige Kane, Yan"]
[Black "Kosteniuk, Kristina"]
[Result "1-0"]
[WhiteElo "2162"]
[BlackElo "1819"]
[PlyCount "65"]
[EventDate "2023.??.??"]
[TimeControl "1"]

1. e4 {[%emt 0:00:00]} c5 {[%emt 0:00:00]} 2. Nf3 {[%emt 0:00:00]} Nc6 {
[%emt 0:00:00]} 3. d4 {[%emt 0:00:00]} cxd4 {[%emt 0:00:00]} 4. Nxd4 {[%emt 0:
00:00]} Nf6 {[%emt 0:00:00]} 5. Nc3 {[%emt 0:00:00]} e5 {[%emt 0:00:00]} 6.
Ndb5 {[%emt 0:00:00]} d6 {[%emt 0:00:00]} 7. Bg5 {[%emt 0:00:00]} a6 {[%emt 0:
00:00]} 8. Na3 {[%emt 0:00:00]} b5 {[%emt 0:00:00]} 9. Nab1 {[%emt 0:00:00]}
Rb8 {[%emt 0:00:00]} 10. Nd5 {[%emt 0:00:00]} Be7 {[%emt 0:00:00]} 11. Bxf6 {
[%emt 0:00:00]} Bxf6 {[%emt 0:00:00]} 12. a4 {[%emt 0:00:00]} bxa4 {[%emt 0:00:
00]} 13. Rxa4 {[%emt 0:00:00]} Rxb2 {[%emt 0:00:00]} 14. Bxa6 {[%emt 0:00:00]}
Bxa6 {[%emt 0:00:00]} 15. Rxa6 {[%emt 0:00:00]} Nd4 {[%emt 0:00:00]} 16. Na3 {
[%emt 0:00:00]} O-O {[%emt 0:00:00]} 17. O-O {[%emt 0:00:00]} Bg5 {[%emt 0:00:
00]} 18. f4 {[%emt 0:00:00]} Qc8 {[%emt 0:00:00]} 19. Ra4 {[%emt 0:00:00]} Qc5
{[%emt 0:00:00]} 20. Kh1 {[%emt 0:00:00]} Bd8 {[%emt 0:00:00]} 21. fxe5 {
[%emt 0:00:00]} dxe5 {[%emt 0:00:00]} 22. Nc4 {[%emt 0:00:00]} Rxc2 {[%emt 0:
00:00]} 23. Nxe5 {[%emt 0:00:00]} Nb3 {[%emt 0:00:00]} 24. Nd7 {[%emt 0:00:00]}
Qc6 {[%emt 0:00:00]} 25. Nxf8 {[%emt 0:00:00]} Rc1 {[%emt 0:00:00]} 26. Qxc1 {
[%emt 0:00:00]} Nxc1 {[%emt 0:00:00]} 27. Ra7 {[%emt 0:00:00]} Kxf8 {[%emt 0:
00:00]} 28. Rfxf7+ {[%emt 0:00:00]} Ke8 {[%emt 0:00:00]} 29. Rxg7 {[%emt 0:00:
00]} Qe6 {[%emt 0:00:00]} 30. Rxh7 {[%emt 0:00:00]} Qg8 {[%emt 0:00:00]} 31. e5
{[%emt 0:00:00]} Qf8 {[%emt 0:00:00]} 32. Nf6+ {[%emt 0:00:00]} Bxf6 {[%emt 0:
00:00]} 33. exf6 {[%emt 0:00:00]} 1-0

[Event "5e festival international d'échecs d'A"]
[Site "Allauch, France"]
[Date "2023.08.29"]
[Round "2.5"]
[White "Mzembaba, Nasser"]
[Black "Toth, Kincso"]
[Result "1/2-1/2"]
[WhiteElo "1556"]
[BlackElo "1709"]
[PlyCount "167"]
[EventDate "2023.??.??"]
[TimeControl "1"]

1. d4 {[%emt 0:00:00]} d6 {[%emt 0:00:00]} 2. c4 {[%emt 0:00:00]} e5 {[%emt 0:
00:00]} 3. d5 {[%emt 0:00:00]} Nf6 {[%emt 0:00:00]} 4. Nc3 {[%emt 0:00:00]} Bf5
{[%emt 0:00:00]} 5. Bg5 {[%emt 0:00:00]} Nbd7 {[%emt 0:00:00]} 6. e4 {[%emt 0:
00:00]} Bg6 {[%emt 0:00:00]} 7. f3 {[%emt 0:00:00]} Be7 {[%emt 0:00:00]} 8. Qd2
{[%emt 0:00:00]} c6 {[%emt 0:00:00]} 9. Be3 {[%emt 0:00:00]} a6 {[%emt 0:00:00]
} 10. a4 {[%emt 0:00:00]} a5 {[%emt 0:00:00]} 11. Bd3 {[%emt 0:00:00]} Rc8 {
[%emt 0:00:00]} 12. Nge2 {[%emt 0:00:00]} cxd5 {[%emt 0:00:00]} 13. cxd5 {
[%emt 0:00:00]} Nc5 {[%emt 0:00:00]} 14. Nc1 {[%emt 0:00:00]} Nfd7 {[%emt 0:00:
00]} 15. O-O {[%emt 0:00:00]} O-O {[%emt 0:00:00]} 16. Ra3 {[%emt 0:00:00]} f5
{[%emt 0:00:00]} 17. Nb3 {[%emt 0:00:00]} b6 {[%emt 0:00:00]} 18. Nxc5 {
[%emt 0:00:00]} Nxc5 {[%emt 0:00:00]} 19. exf5 {[%emt 0:00:00]} Bxf5 {[%emt 0:
00:00]} 20. Bxf5 {[%emt 0:00:00]} Rxf5 {[%emt 0:00:00]} 21. Ne2 {[%emt 0:00:00]
} Rf6 {[%emt 0:00:00]} 22. b4 {[%emt 0:00:00]} axb4 {[%emt 0:00:00]} 23. Qxb4 {
[%emt 0:00:00]} Rb8 {[%emt 0:00:00]} 24. Rb1 {[%emt 0:00:00]} Rf8 {[%emt 0:00:
00]} 25. Nc1 {[%emt 0:00:00]} Bg5 {[%emt 0:00:00]} 26. Qd2 {[%emt 0:00:00]}
Bxe3+ {[%emt 0:00:00]} 27. Qxe3 {[%emt 0:00:00]} Rf4 {[%emt 0:00:00]} 28. Nd3 {
[%emt 0:00:00]} Rxa4 {[%emt 0:00:00]} 29. Rxa4 {[%emt 0:00:00]} Nxa4 {[%emt 0:
00:00]} 30. Nb4 {[%emt 0:00:00]} Rb7 {[%emt 0:00:00]} 31. Ra1 {[%emt 0:00:00]}
b5 {[%emt 0:00:00]} 32. f4 {[%emt 0:00:00]} exf4 {[%emt 0:00:00]} 33. Qxf4 {
[%emt 0:00:00]} Rf7 {[%emt 0:00:00]} 34. Qe3 {[%emt 0:00:00]} Qf6 {[%emt 0:00:
00]} 35. Qe8+ {[%emt 0:00:00]} Rf8 {[%emt 0:00:00]} 36. Qe6+ {[%emt 0:00:00]}
Qxe6 {[%emt 0:00:00]} 37. dxe6 {[%emt 0:00:00]} Re8 {[%emt 0:00:00]} 38. Re1 {
[%emt 0:00:00]} Nc5 {[%emt 0:00:00]} 39. e7 {[%emt 0:00:00]} Kf7 {[%emt 0:00:
00]} 40. Nd5 {[%emt 0:00:00]} b4 {[%emt 0:00:00]} 41. Rf1+ {[%emt 0:00:00]} Kg8
{[%emt 0:00:00]} 42. Nxb4 {[%emt 0:00:00]} Rxe7 {[%emt 0:00:00]} 43. Rd1 {
[%emt 0:00:00]} Rd7 {[%emt 0:00:00]} 44. Kf2 {[%emt 0:00:00]} Kf7 {[%emt 0:00:
00]} 45. Nd3 {[%emt 0:00:00]} Nxd3+ {[%emt 0:00:00]} 46. Rxd3 {[%emt 0:00:00]}
Ke6 {[%emt 0:00:00]} 47. Ke3 {[%emt 0:00:00]} d5 {[%emt 0:00:00]} 48. Rd4 {
[%emt 0:00:00]} Ke5 {[%emt 0:00:00]} 49. Rh4 {[%emt 0:00:00]} h6 {[%emt 0:00:
00]} 50. Rh5+ {[%emt 0:00:00]} Ke6 {[%emt 0:00:00]} 51. Kd4 {[%emt 0:00:00]}
Rd8 {[%emt 0:00:00]} 52. h4 {[%emt 0:00:00]} Ra8 {[%emt 0:00:00]} 53. Re5+ {
[%emt 0:00:00]} Kf6 {[%emt 0:00:00]} 54. Rxd5 {[%emt 0:00:00]} Ra4+ {[%emt 0:
00:00]} 55. Ke3 {[%emt 0:00:00]} Rxh4 {[%emt 0:00:00]} 56. Kf3 {[%emt 0:00:00]}
g5 {[%emt 0:00:00]} 57. Rb5 {[%emt 0:00:00]} Rf4+ {[%emt 0:00:00]} 58. Kg3 {
[%emt 0:00:00]} Kg6 {[%emt 0:00:00]} 59. Ra5 {[%emt 0:00:00]} h5 {[%emt 0:00:
00]} 60. Ra8 {[%emt 0:00:00]} h4+ {[%emt 0:00:00]} 61. Kh3 {[%emt 0:00:00]} Rc4
{[%emt 0:00:00]} 62. Rg8+ {[%emt 0:00:00]} Kf6 {[%emt 0:00:00]} 63. Rh8 {
[%emt 0:00:00]} Rc3+ {[%emt 0:00:00]} 64. Kh2 {[%emt 0:00:00]} Kf5 {[%emt 0:00:
00]} 65. Rb8 {[%emt 0:00:00]} Re3 {[%emt 0:00:00]} 66. Rf8+ {[%emt 0:00:00]}
Kg4 {[%emt 0:00:00]} 67. Rf2 {[%emt 0:00:00]} Kh5 {[%emt 0:00:00]} 68. Rc2 {
[%emt 0:00:00]} Re4 {[%emt 0:00:00]} 69. Rb2 {[%emt 0:00:00]} Rf4 {[%emt 0:00:
00]} 70. Rc2 {[%emt 0:00:00]} g4 {[%emt 0:00:00]} 71. Rc5+ {[%emt 0:00:00]} Kg6
{[%emt 0:00:00]} 72. Rc2 {[%emt 0:00:00]} Kf5 {[%emt 0:00:00]} 73. g3 {[%emt 0:
00:00]} hxg3+ {[%emt 0:00:00]} 74. Kxg3 {[%emt 0:00:00]} Rf3+ {[%emt 0:00:00]}
75. Kg2 {[%emt 0:00:00]} Rd3 {[%emt 0:00:00]} 76. Rc5+ {[%emt 0:00:00]} Kf4 {
[%emt 0:00:00]} 77. Rc4+ {[%emt 0:00:00]} Kg5 {[%emt 0:00:00]} 78. Rc5+ {
[%emt 0:00:00]} Kh4 {[%emt 0:00:00]} 79. Rc2 {[%emt 0:00:00]} Rg3+ {[%emt 0:00:
00]} 80. Kh2 {[%emt 0:00:00]} Rf3 {[%emt 0:00:00]} 81. Kg2 {[%emt 0:00:00]} Rf4
{[%emt 0:00:00]} 82. Rc3 {[%emt 0:00:00]} Rd4 {[%emt 0:00:00]} 83. Rc2 {
[%emt 0:00:00]} g3 {[%emt 0:00:00]} 84. Rb2 {[%emt 0:00:00]} 1/2-1/2